bitfinex-derivatives/quotes_BNBF0:USTF0_20250329
["timestamp","ask_amount","ask_price","bid_price","bid_amount"]
[1743223041265,0.30022309,612.83,612.02,4.8]
[1743223041469,0.30022309,612.84,612.02,4.8]
[1743223042872,0.28429514,612.83,612.02,4.8]
[1743223043074,0.62658319,612.82,612.02,4.8]
[1743223043274,0.62658852,612.81,612.02,4.8]
[1743223043573,0.62659384,612.8,612.02,4.8]
[1743223043773,0.62659917,612.79,612.02,4.8]
[1743223043974,0.62660449,612.78,612.02,4.8]
[1743223044175,0.62660982,612.77,612.02,4.8]
[1743223044377,0.62661515,612.76,612.02,5.923]
[1743223044576,0.62662047,612.75,612.02,5.923]
[1743223044877,0.6266258,612.74,612.02,5.923]
[1743223045076,0.62663113,612.73,612.02,5.923]
[1743223045276,0.30022309,612.72,612.02,5.923]
[1743223045876,0.28430908,612.71,612.02,5.923]
[1743223046073,0.30022309,612.7,612.02,5.923]
[1743223046686,0.32642935,612.69,612.02,5.923]
[1743223046880,0.30022309,612.68,612.02,5.923]
[1743223047779,0.30028772,612.67,612.02,5.923]
[1743223047979,0.30028772,612.68,612.02,5.923]
[1743223048176,0.30028772,612.67,612.02,5.923]
[1743223048384,0.30028772,612.68,612.02,5.923]
[1743223048780,0.28432302,612.66,612.02,5.923]
[1743223048980,0.30028772,612.65,612.02,5.923]
[1743223051078,0.30028772,612.64,612.02,5.923]
[1743223051279,0.30028772,612.68,612.02,5.923]
[1743223051478,0.30028772,612.67,612.02,5.923]
[1743223051681,0.30028772,612.68,612.02,5.923]
[1743223051883,0.58461074,612.67,612.02,5.923]
[1743223052284,0.30028772,612.66,612.02,5.923]
[1743223052584,0.32645066,612.65,612.02,5.923]
[1743223052782,0.30028772,612.64,612.02,5.923]
[1743223052983,0.32646132,612.63,612.02,5.923]
[1743223053184,0.30028772,612.62,612.02,5.923]
[1743223053378,0.62675437,612.62,612.02,5.923]
[1743223053584,0.30028772,612.61,612.02,5.923]
[1743223054685,0.28432186,612.6,612.02,5.923]
[1743223056686,0.32646665,612.62,612.02,5.923]
[1743223057085,0.2843056,612.59,612.02,5.923]
[1743223059585,0.32646665,612.62,612.02,5.923]
[1743223060089,0.2843056,612.58,612.02,5.923]
[1743223062596,0.32646665,612.62,612.02,5.923]
[1743223062890,0.2843056,612.57,612.02,5.923]
[1743223065589,0.32646665,612.62,612.02,5.923]
[1743223066088,0.28420692,612.61,612.02,5.923]
[1743223068494,0.32646665,612.62,612.02,5.923]
[1743223068997,0.28420692,612.61,612.02,5.923]
[1743223077604,0.32646665,612.62,612.02,5.923]
[1743223078005,0.2843056,612.6,612.02,5.923]
[1743223080606,0.32646665,612.62,612.02,5.923]
[1743223081906,0.28420924,612.61,612.02,5.923]
[1743223089614,0.32646665,612.62,612.02,5.923]
[1743223090015,0.28420924,612.61,612.02,5.923]
[1743223092709,0.32646665,612.62,612.02,5.923]
[1743223092910,0.28430327,612.6,612.02,5.923]
[1743223095818,0.32646665,612.62,612.02,5.923]
[1743223097016,0.28423013,612.61,612.02,5.923]
[1743223098720,0.32646665,612.62,612.02,5.923]
[1743223099921,0.28423593,612.61,612.02,5.923]
[1743223102623,0.30033509,612.6,612.02,5.923]
[1743223104126,0.32648263,612.59,612.02,5.923]
[1743223104327,0.30033509,612.58,612.02,5.923]
[1743223104526,0.32648263,612.59,612.02,5.923]
[1743223104823,0.30033558,612.58,612.02,5.923]
[1743223106025,0.28435787,612.57,612.02,5.923]
[1743223106221,0.30033558,612.56,612.02,5.923]
[1743223107730,0.32649862,612.56,612.02,5.923]
[1743223108028,0.30035208,612.55,612.02,5.923]
[1743223108830,0.28436832,612.54,612.02,5.923]
[1743223109131,0.30035208,612.53,612.02,5.923]
[1743223110829,0.30035208,612.55,612.02,5.923]
[1743223111030,0.30035208,612.54,612.02,5.923]
[1743223111229,0.30035208,612.53,612.02,5.923]
[1743223111429,0.30035208,612.55,612.02,5.923]
[1743223111631,0.30035208,612.54,612.02,5.923]
[1743223111825,0.5847204,612.54,612.02,5.923]
[1743223112024,0.30035208,612.53,612.02,5.923]
[1743223113227,0.28436832,612.54,612.02,5.923]
[1743223113432,0.30035367,612.53,612.02,5.923]
[1743223113826,0.30035367,612.55,612.02,5.923]
[1743223114028,0.30035367,612.54,612.02,5.923]
[1743223114228,0.30035367,612.53,612.02,5.923]
[1743223114833,0.32650928,612.54,612.02,5.923]
[1743223115032,0.2843811,612.52,612.02,5.923]
[1743223115235,0.30036691,612.51,612.02,5.923]
[1743223116935,0.30036691,612.53,612.02,5.923]
[1743223117140,0.30036691,612.52,612.02,5.923]
[1743223117334,0.30036691,612.51,612.02,5.923]
[1743223117538,0.30036691,612.53,612.02,5.923]
[1743223117837,0.30036691,612.52,612.02,5.923]
[1743223118039,0.28437529,612.52,612.02,5.923]
[1743223118234,0.30036691,612.51,612.02,5.923]
[1743223118637,0.32653061,612.5,612.02,5.923]
[1743223118842,0.30036691,612.49,612.02,5.923]
[1743223119039,0.32654127,612.48,612.02,5.923]
[1743223119238,0.30036691,612.47,612.02,5.923]
[1743223119441,0.32655193,612.46,612.02,5.923]
[1743223119635,0.30036691,612.45,612.02,5.923]
[1743223119936,0.3265626,612.44,612.02,5.923]
[1743223120134,0.30036691,612.43,612.02,4.362]
[1743223120335,0.32657326,612.42,611.02,0.28440318]
[1743223120638,0.30036691,612.41,611.03,0.62187231]
[1743223120838,0.32658393,612.4,611.04,0.62186695]
[1743223121035,0.32658393,612.4,611.05,0.62186159]
[1743223121036,0.30036691,612.39,611.05,0.62186159]
[1743223121239,0.32659459,612.38,611.06,0.29455614]
[1743223121642,0.30036691,612.37,611.06,0.29455614]
[1743223121842,0.62696684,612.37,611.06,0.29455614]
[1743223122037,0.30036691,612.36,611.06,0.29455614]
[1743223123042,0.28454736,612.35,611.06,0.29455614]
[1743223123341,0.30036691,612.34,611.06,0.29455614]
[1743223123543,0.28454736,612.35,611.06,1.20055614]
[1743223123742,0.28454736,612.35,611.07,0.29455614]
[1743223124144,0.28454736,612.35,611.08,0.845]
[1743223124545,0.61115795,612.35,611.09,0.29455614]
[1743223124745,0.30043014,612.34,611.09,0.29455614]
[1743223124939,0.61115795,612.35,611.09,0.29455614]
[1743223125743,0.32661059,612.35,611.09,0.29455614]
[1743223126039,0.30043014,612.34,611.09,0.29455614]
[1743223126839,0.28455085,612.33,611.08,0.845]
[1743223127042,0.28455085,612.33,611.09,0.29456424]
[1743223127649,0.30045085,612.32,611.09,0.29456424]
[1743223128752,0.30045085,612.31,611.09,0.29456424]
[1743223128946,0.30045085,612.34,611.09,0.29456424]
[1743223129151,0.30045085,612.33,611.09,0.29456424]
[1743223129350,0.30045085,612.32,611.09,0.29456424]
[1743223129554,0.30045085,612.31,611.09,0.29456424]
[1743223129751,0.30045085,612.34,611.09,0.29456424]
[1743223129951,0.28458343,612.31,611.09,0.29456424]
[1743223130154,0.30045085,612.3,611.09,0.29456424]
[1743223130351,0.28458343,612.31,611.08,0.845]
[1743223130555,0.30049234,612.29,611.1,0.29462626]
[1743223130756,0.30049234,612.28,611.11,0.29462626]
[1743223130952,0.30049234,612.3,611.09,0.29462626]
[1743223131155,0.3266426,612.29,611.09,0.29462626]
[1743223131353,0.30049234,612.28,611.09,0.29462626]
[1743223131754,0.32665327,612.27,611.09,0.29462626]
[1743223131956,0.30049234,612.26,611.09,0.29462626]
[1743223132255,0.30046296,612.25,611.1,0.29459697]
[1743223132454,0.32665327,612.27,611.11,0.29459697]
[1743223132655,0.32665327,612.27,611.09,0.29459697]
[1743223132960,0.28456249,612.24,611.1,0.29459697]
[1743223133161,0.28456249,612.24,611.08,0.845]
[1743223133162,0.28456249,612.24,611.11,0.29459697]
[1743223133362,0.28456249,612.24,611.09,0.29459697]
[1743223133662,0.28456249,612.24,611.1,0.29459697]
[1743223133961,0.28456249,612.24,611.09,0.29459697]
[1743223134261,0.28456249,612.24,611.1,0.29459697]
[1743223134462,0.28456249,612.24,611.09,0.29459697]
[1743223134763,0.32665327,612.27,611.09,0.29459697]
[1743223134957,0.28456249,612.23,611.09,0.29459697]
[1743223135360,0.28456249,612.23,611.07,0.29459697]
[1743223135562,0.28456249,612.23,611.08,0.29459697]
[1743223135757,0.28456249,612.23,611.09,0.29459697]
[1743223135960,0.28456249,612.23,611.1,0.29459697]
[1743223136160,0.28456249,612.23,611.07,0.29459697]
[1743223136360,0.28456249,612.23,611.08,0.29459697]
[1743223136661,0.28456249,612.23,611.09,0.29459697]
[1743223136862,0.28456249,612.23,611.07,0.29459697]
[1743223137163,0.28456249,612.23,611.08,0.29459697]
[1743223137463,0.28456249,612.23,611.09,1.057]
[1743223137666,0.32665327,612.27,611.1,0.29459697]
[1743223138260,0.30043953,612.26,611.1,0.29459697]
[1743223138860,0.28456132,612.25,611.1,0.29459697]
[1743223140464,0.28456132,612.25,611.11,0.32727332]
[1743223140664,0.32665327,612.27,611.12,0.29459697]
[1743223141062,0.32665327,612.27,611.13,0.32726261]
[1743223141264,0.32665327,612.27,611.14,0.29459697]
[1743223141464,0.32665327,612.27,611.15,0.3272519]
[1743223141660,0.32665327,612.27,611.16,0.29459697]
[1743223141959,0.28446828,612.26,611.16,0.29459697]
[1743223143758,0.32665327,612.27,611.16,1.25059697]
[1743223143964,0.32665327,612.27,611.17,0.29459697]
[1743223144163,0.2845334,612.25,611.17,0.29459697]
[1743223146665,0.32665327,612.27,611.17,0.29459697]
[1743223147260,0.32665327,612.27,611.18,0.29454615]
[1743223147461,0.32665327,612.27,611.17,0.29454615]
[1743223147861,0.28443921,612.26,611.17,0.29454615]
[1743223148862,0.28443921,612.26,611.16,0.956]
[1743223149069,0.28443921,612.26,611.17,0.2945409]
[1743223149764,0.32665327,612.27,611.17,1.3915409]
[1743223149968,0.32665327,612.27,611.17,1.097]
[1743223150670,0.32665327,612.27,611.18,0.29457919]
[1743223150968,0.28447525,612.26,611.18,0.29457919]
[1743223151469,0.30047524,612.25,611.18,0.29457919]
[1743223151669,0.28447525,612.26,611.17,1.097]
[1743223151870,0.3005026,612.25,611.17,1.097]
[1743223152863,0.62717188,612.24,611.17,1.097]
[1743223153065,0.32667461,612.23,611.17,1.097]
[1743223153972,0.28453457,612.22,611.17,1.097]
[1743223155171,0.28453457,612.22,611.17,2.13]
[1743223155567,0.28453457,612.22,611.17,3.549]
[1743223155773,0.32667461,612.23,611.17,3.549]
[1743223156679,0.32667461,612.23,611.17,4.488]
[1743223156879,0.28447293,612.22,611.17,4.488]
[1743223158978,0.32667461,612.23,611.18,0.29454469]
[1743223160376,0.28437181,612.37,611.18,0.29454469]
[1743223161180,0.28437181,612.37,611.19,0.32723048]
[1743223161376,0.28437181,612.37,611.2,0.29454469]
[1743223161582,2.50836186,613.29,611.2,0.29454469]
[1743223161583,2.44269362,613.13,611.2,0.29454469]
[1743223161777,0.30033486,613.12,611.2,0.29454469]
[1743223161979,0.62654059,613.11,611.21,0.32721977]
[1743223162176,0.32621637,613.09,611.22,0.29454469]
[1743223162379,0.30033486,613.08,611.23,0.32720907]
[1743223162576,0.32623234,613.06,611.24,0.29454469]
[1743223162780,0.30033486,613.05,611.25,0.32719836]
[1743223162983,0.3262483,613.03,611.26,0.29454469]
[1743223163185,0.30033486,613.02,611.27,0.32718765]
[1743223163378,0.32626427,613.0,611.28,0.29454469]
[1743223163581,0.30033486,612.99,611.29,0.32717695]
[1743223163787,0.32628024,612.97,611.3,0.29454469]
[1743223163982,0.30033486,612.96,611.3,0.29454469]
[1743223164178,0.32629621,612.94,611.3,0.29454469]
[1743223164480,0.30033486,612.93,611.3,0.29454469]
[1743223164684,0.32631218,612.91,611.3,0.29454469]
[1743223164987,0.30033486,612.9,611.3,0.29454469]
[1743223165187,0.32632815,612.88,611.3,0.29454469]
[1743223165386,0.30033486,612.87,611.3,0.29454469]
[1743223165581,0.32634412,612.85,611.3,0.29454469]
[1743223165780,0.30033486,612.84,611.3,0.29454469]
[1743223165984,0.3263601,612.82,611.3,0.29454469]
[1743223166185,0.30035247,612.81,611.31,0.29448684]
[1743223166387,0.32637608,612.79,611.3,0.29448684]
[1743223166686,0.30035247,612.78,611.3,0.29448684]
[1743223166882,0.32639206,612.76,611.3,0.29448684]
[1743223167087,0.30035247,612.75,611.3,0.29448684]
[1743223167288,0.32640804,612.73,611.3,0.29448684]
[1743223167487,0.30035247,612.72,611.3,0.29448684]
[1743223167687,0.32642402,612.7,611.3,0.29448684]
[1743223167887,0.30035247,612.69,611.3,0.29448684]
[1743223168182,0.32644,612.67,611.3,0.29448684]
[1743223168382,0.30035247,612.66,611.3,0.29448684]
[1743223168581,0.32645066,612.65,611.3,0.29448684]
[1743223168887,0.30035247,612.64,611.3,1.54148684]
[1743223169090,0.32646132,612.63,611.31,0.29448684]
[1743223169386,0.30035247,612.62,611.31,0.29448684]
[1743223169587,0.32647198,612.61,611.31,0.29448684]
[1743223169782,0.30035247,612.6,611.31,0.29448684]
[1743223169984,0.32648263,612.59,611.31,0.29448684]
[1743223170185,0.30035247,612.58,611.31,0.29448684]
[1743223170388,0.32649329,612.57,611.31,0.29448684]
[1743223170584,0.30035247,612.56,611.31,0.29448684]
[1743223170791,0.32650395,612.55,611.31,0.29448684]
[1743223170989,0.32650395,612.55,611.3,1.247]
[1743223171188,0.30036477,612.54,611.31,0.29449907]
[1743223171396,0.32651461,612.53,611.31,0.29449907]
[1743223171688,0.30036477,612.52,611.31,0.29449907]
[1743223171886,0.32652528,612.51,611.31,0.29449907]
[1743223172089,0.30036477,612.5,611.31,0.29449907]
[1743223172389,0.32653594,612.49,611.31,1.25549907]
[1743223172590,0.30036477,612.48,611.32,0.29449907]
[1743223172891,0.32654127,612.48,611.31,1.994]
[1743223173089,0.30036477,612.47,611.32,0.29449907]
[1743223173983,0.32654127,612.48,611.32,0.29449907]
[1743223174892,0.28435322,612.47,611.33,0.32715554]
[1743223175089,0.28435322,612.47,611.34,0.29449907]
[1743223175389,0.28435322,612.47,611.35,0.32714484]
[1743223175589,0.28435322,612.47,611.36,0.29449907]
[1743223175783,0.28435322,612.47,611.37,0.32713414]
[1743223175988,0.28435322,612.47,611.38,0.29449907]
[1743223176183,0.28435322,612.47,611.38,0.32712879]
[1743223176387,0.28435322,612.47,611.39,0.29443002]
[1743223176588,0.32654127,612.48,611.39,0.29443002]
[1743223177791,0.28432766,612.47,611.39,0.29443002]
[1743223179799,0.32654127,612.48,611.39,0.29443002]
[1743223179995,0.28441945,612.46,611.39,0.29443002]
[1743223181094,2.62141405,613.46,611.41,0.32711273]
[1743223181300,0.32607277,613.36,611.42,0.29431334]
[1743223181498,0.30017863,613.35,611.44,0.32709668]
[1743223181698,0.32608872,613.33,611.45,0.29431334]
[1743223181899,0.32608872,613.33,611.46,0.32708599]
[1743223182099,0.30017495,613.32,611.47,0.29430967]
[1743223182295,0.32610467,613.3,611.48,0.32707529]
[1743223182499,0.30017495,613.29,611.49,0.29430967]
[1743223182694,0.32612063,613.27,611.5,0.32706459]
[1743223182894,0.30017495,613.26,611.51,0.29430967]
[1743223183203,0.32613658,613.24,611.52,0.32705389]
[1743223183399,0.30017495,613.23,611.53,0.29430967]
[1743223183598,0.32615254,613.21,611.54,0.3270432]
[1743223183799,0.30017495,613.2,611.55,0.29430967]
[1743223184000,0.32616849,613.18,611.56,0.3270325]
[1743223184500,0.30017495,613.17,611.57,0.29430967]
[1743223184700,0.32617913,613.16,611.58,0.32702181]
[1743223184900,0.30017495,613.15,611.59,0.29430967]
[1743223185102,0.32618977,613.14,611.6,0.32701111]
[1743223185298,0.30017495,613.13,611.61,0.29430967]
[1743223185495,0.32620041,613.12,611.62,0.32700042]
[1743223185698,0.30013623,613.11,611.63,0.29427123]
[1743223185901,0.32621105,613.1,611.64,0.32698973]
[1743223186100,0.32621105,613.1,611.65,0.29427123]
[1743223186101,0.30013623,613.09,611.65,0.29427123]
[1743223186300,0.3262217,613.08,611.66,0.32697904]
[1743223186501,0.30013623,613.07,611.67,0.29427123]
[1743223186795,0.32623234,613.06,611.67,0.62124492]
[1743223186993,0.30013623,613.05,611.68,0.29427123]
[1743223187196,0.32624298,613.04,611.68,0.29427123]
[1743223187397,0.30013623,613.03,611.68,0.29427123]
[1743223187599,0.32625362,613.02,611.68,0.29427123]
[1743223187795,0.30013623,613.01,611.68,0.29427123]
[1743223187999,0.32626427,613.0,611.68,0.29427123]
[1743223188396,0.32626427,613.0,611.68,1.46427123]
[1743223188597,0.32626427,613.0,611.69,0.29427123]
[1743223189698,2.44269362,613.74,611.69,0.29427123]
[1743223189699,6.1028827,613.97,611.69,0.29427123]
[1743223189899,0.30013676,613.96,611.69,0.29427123]
[1743223190102,0.28417094,612.99,611.69,0.29427123]
[1743223190302,2.5076345,613.99,611.69,0.29427123]
[1743223190601,0.30013672,613.98,611.69,0.29427123]
[1743223190800,0.30013672,613.97,611.69,0.29427123]
[1743223190995,0.30013672,613.96,611.69,0.29427123]
[1743223191198,0.30013672,613.95,611.69,0.29427123]
[1743223191399,0.30013672,613.94,611.69,0.29427123]
[1743223191600,0.30013672,613.93,611.69,0.29427123]
[1743223191801,0.30013672,613.92,611.69,0.29427123]
[1743223192102,0.30013672,613.91,611.69,0.29427123]
[1743223192302,0.30013672,613.9,611.69,0.29427123]
[1743223192501,0.30013672,613.89,611.69,0.29427123]
[1743223192703,0.30013672,613.88,611.69,0.29427123]
[1743223192898,0.30013672,613.87,611.69,0.29427123]
[1743223193098,0.28414426,613.94,611.69,0.29427123]
[1743223193099,0.30013672,613.86,611.69,0.29427123]
[1743223193304,0.30013672,613.85,611.69,0.29427123]
[1743223193504,0.30013672,613.84,611.69,0.29427123]
[1743223193705,0.30015449,613.83,611.68,1.17]
[1743223194006,0.30015449,613.82,611.68,1.17]
[1743223194204,0.30015449,613.81,611.68,1.17]
[1743223194404,0.30015449,613.8,611.68,1.17]
[1743223194605,0.30015449,613.79,611.68,1.17]
[1743223194806,0.30015449,613.78,611.68,1.17]
[1743223195006,0.30015449,613.77,611.68,1.17]
[1743223195207,0.30015449,613.76,611.68,1.17]
[1743223195603,0.30015449,613.89,611.68,1.17]
[1743223195808,0.30015449,613.88,611.68,1.17]
[1743223196009,0.28411758,613.75,611.68,1.17]
[1743223196204,0.30015449,613.74,611.68,1.17]
[1743223196401,0.30015449,613.89,611.68,1.17]
[1743223197107,2.44269362,613.9,611.68,1.17]
[1743223197308,0.30005329,613.89,611.68,1.17]
[1743223197610,0.30005329,614.96,611.68,1.17]
[1743223197812,0.28412222,613.89,611.68,1.17]
[1743223198010,0.30005329,613.88,611.68,1.17]
[1743223198409,0.30005329,614.96,611.68,1.17]
[1743223198610,2.74274691,614.95,611.68,1.17]
[1743223198810,0.30005329,614.94,611.68,1.17]
[1743223199005,0.30005329,614.93,611.68,1.17]
[1743223199206,0.30005329,614.92,611.68,1.17]
[1743223199509,0.28400049,614.94,611.68,1.17]
[1743223199510,0.30005329,614.91,611.68,1.17]
[1743223199711,0.30005329,614.9,611.68,1.17]
[1743223200011,0.30005329,614.89,611.68,1.17]
[1743223200507,0.30005329,614.88,611.68,1.17]
[1743223200711,0.30005329,614.87,611.68,1.17]
[1743223201010,0.30005329,614.86,611.68,1.17]
[1743223201208,0.30005329,614.85,611.68,1.17]
[1743223201407,0.30005329,614.84,611.68,1.17]
[1743223201612,0.30005329,614.83,611.68,1.17]
[1743223202007,0.30005329,614.82,611.68,1.17]
[1743223202208,2.44269362,614.58,611.68,1.17]
[1743223202406,0.30005329,614.57,611.68,1.17]
[1743223202606,0.30005329,614.56,611.68,1.17]
[1743223202815,0.30005329,614.55,611.68,2.419]
[1743223203111,0.30005329,614.54,611.68,2.419]
[1743223203312,0.30005329,614.53,611.69,0.29419552]
[1743223203608,0.30005329,614.52,611.69,0.29419552]
[1743223203810,0.30005329,614.51,611.69,0.29419552]
[1743223204014,0.30005329,614.5,611.69,0.29419552]
[1743223204214,0.30005329,614.49,611.69,0.29419552]
[1743223204409,0.30005329,614.48,611.69,0.29419552]
[1743223204611,2.44269362,614.31,611.7,0.79]
[1743223204809,0.30005329,614.3,611.71,0.29419552]
[1743223205012,0.30005329,614.29,611.71,0.29419552]
[1743223205209,0.3000568,614.28,611.72,0.29419203]
[1743223205416,0.3000568,614.27,611.71,0.29419203]
[1743223205611,2.44269362,614.31,611.71,0.29419203]
[1743223205612,0.3000568,614.26,611.71,0.29419203]
[1743223205812,0.3000568,614.25,611.71,0.29419203]
[1743223206015,0.3000568,614.24,611.71,0.29419203]
[1743223206216,0.3000568,614.23,611.71,0.29419203]
[1743223206415,0.3000568,614.22,611.71,0.29419203]
[1743223206610,2.44269362,614.12,611.71,0.29419203]
[1743223206812,0.3000568,614.11,611.71,0.29419203]
[1743223207007,0.3000568,614.1,611.71,0.29419203]
[1743223207215,0.3000568,614.09,611.71,0.29419203]
[1743223207408,0.3000568,614.08,611.71,0.29419203]
[1743223207608,0.3000568,614.07,611.71,0.29419203]
[1743223207815,0.3000568,614.06,611.71,0.29419203]
[1743223208017,0.3000568,614.05,611.71,0.29419203]
[1743223208319,0.3000568,614.04,611.71,0.29419203]
[1743223208615,0.3000568,614.03,611.71,0.29419203]
[1743223208812,0.30010044,614.02,611.72,0.29423561]
[1743223209007,2.44269362,613.91,611.71,0.29423561]
[1743223209207,0.30010044,613.9,611.72,0.29423561]
[1743223209412,2.44269362,613.91,611.7,0.79]
[1743223209413,0.30010044,613.89,611.71,0.29423561]
[1743223209613,0.30010044,613.88,611.71,0.29423561]
[1743223209810,2.44269362,613.91,611.71,0.29423561]
[1743223209811,0.30010044,613.87,611.71,0.29423561]
[1743223210116,0.30010044,613.86,611.71,0.29423561]
[1743223210312,0.30010044,613.85,611.71,0.29423561]
[1743223210512,0.30010044,613.84,611.71,0.29423561]
[1743223210712,0.30010044,613.83,611.71,0.29423561]
[1743223210909,2.44269362,613.49,611.71,0.29423561]
[1743223211111,0.30010044,613.48,611.71,0.29423561]
[1743223213416,0.30010044,613.51,611.71,0.29423561]
[1743223213610,0.30010044,613.51,611.72,1.253]
[1743223213815,0.30010044,613.51,611.73,0.29423561]
[1743223214210,0.30010044,613.5,611.73,0.29423561]
[1743223214416,0.30010044,613.49,611.72,1.253]
[1743223214816,0.30010044,613.48,611.72,1.253]
[1743223215111,0.30010044,613.47,611.72,1.253]
[1743223215316,0.30010044,613.5,611.72,1.253]
[1743223215516,0.30010044,613.49,611.72,1.253]
[1743223215717,0.30010044,613.48,611.73,0.29429675]
[1743223216017,0.30010044,613.47,611.73,0.29429675]
[1743223216211,0.30010044,613.5,611.73,0.29429675]
[1743223216413,0.30010044,613.49,611.73,0.29429675]
[1743223216612,2.44269362,613.4,611.73,0.29429675]
[1743223216812,0.30010044,613.39,611.73,0.29429675]
[1743223219014,0.28422665,613.38,611.73,0.29429675]
[1743223219213,0.30010044,613.37,611.73,0.29429675]
[1743223219915,2.74279406,613.37,611.73,0.29429675]
[1743223220119,0.30010044,613.36,611.73,0.29429675]
[1743223220319,0.30010044,613.35,611.73,0.29429675]
[1743223220519,0.30010044,613.34,611.73,0.29429675]
[1743223220720,0.30010044,613.33,611.73,0.29429675]
[1743223220918,2.44269362,613.37,611.72,1.253]
[1743223221119,0.30017087,613.36,611.73,0.29430576]
[1743223221419,0.30017087,613.35,611.73,0.29430576]
[1743223221620,0.30017087,613.34,611.73,0.29430576]
[1743223221922,0.30017087,613.33,611.73,0.29430576]
[1743223222221,2.44269362,613.25,611.73,0.29430576]
[1743223222421,0.30017087,613.24,611.73,0.29430576]
[1743223224727,0.32614722,613.22,611.73,0.29430576]
[1743223224925,0.30017087,613.21,611.72,1.253]
[1743223225226,0.32616317,613.19,611.72,1.253]
[1743223225426,0.30017087,613.18,611.72,1.253]
[1743223225632,0.32617913,613.16,611.72,1.253]
[1743223225927,0.30017087,613.15,611.72,1.253]
[1743223226128,0.32619509,613.13,611.72,1.253]
[1743223226334,0.30017087,613.12,611.72,1.253]
[1743223226727,0.30017087,613.12,611.73,1.183]
[1743223226923,0.30017087,613.11,611.73,2.425]
[1743223227228,0.32621637,613.09,611.73,2.425]
[1743223227428,0.30017087,613.08,611.73,2.425]
[1743223227630,0.32623234,613.06,611.73,2.425]
[1743223227822,0.30017087,613.05,611.73,2.425]
[1743223228026,0.3262483,613.03,611.73,2.425]
[1743223228422,0.30017087,613.02,611.73,2.425]
[1743223228830,0.32626427,613.0,611.73,2.425]
[1743223229030,0.30017087,612.99,611.73,2.425]
[1743223229231,0.32628024,612.97,611.73,2.425]
[1743223229429,0.30017087,612.96,611.73,2.425]
[1743223229625,0.32629621,612.94,611.73,2.425]
[1743223229829,0.30017087,612.93,611.73,2.425]
[1743223230025,0.32631218,612.91,611.73,2.425]
[1743223230329,0.30017087,612.9,611.73,2.425]
[1743223230530,0.32632815,612.88,611.73,2.425]
[1743223230834,0.30017087,612.87,611.73,2.425]
[1743223231131,0.3263388,612.86,611.73,2.425]
[1743223231331,0.30017087,612.85,611.73,2.425]
[1743223231524,0.32634945,612.84,611.73,2.425]
[1743223231728,0.30017087,612.83,611.73,2.425]
[1743223231928,0.3263601,612.82,611.73,2.425]
[1743223232130,0.30017087,612.81,611.73,2.425]
[1743223232334,0.32637075,612.8,611.73,2.425]
[1743223233229,0.30025219,612.79,611.73,2.425]
[1743223233428,0.3263814,612.78,611.73,2.425]
[1743223233630,0.30025219,612.77,611.73,2.425]
[1743223233930,0.32639206,612.76,611.73,2.425]
[1743223234230,0.30025219,612.75,611.73,2.425]
[1743223234431,0.32640271,612.74,611.73,2.425]
[1743223234630,0.30025219,612.73,611.73,2.425]
[1743223234832,0.32641336,612.72,611.73,2.425]
[1743223235024,0.30025219,612.71,611.73,2.425]
[1743223235331,0.32642402,612.7,611.73,2.425]
[1743223235631,0.30025219,612.69,611.73,2.425]
[1743223235831,0.32643468,612.68,611.73,2.425]
[1743223236737,0.32643468,612.68,611.74,0.79]
[1743223240934,0.28423477,612.67,611.74,0.79]
[1743223242733,0.28423477,612.67,611.75,1.273]
[1743223244339,0.28423477,612.67,611.76,0.957]
[1743223244938,0.28423477,612.67,611.77,1.184]
[1743223245739,0.32643468,612.68,611.77,1.184]
[1743223246941,0.28420924,612.67,611.77,1.184]
[1743223254842,0.32643468,612.68,611.77,1.184]
[1743223256044,0.284222,612.67,611.77,1.184]
[1743223259653,0.284222,612.67,611.77,2.278]
[1743223260647,0.32643468,612.68,611.77,2.278]
[1743223261849,0.28425451,612.67,611.77,2.278]
[1743223263848,0.32643468,612.68,611.77,2.278]
[1743223264954,0.28423825,612.67,611.77,2.278]
[1743223265149,0.28423825,612.67,611.77,3.654]
[1743223269652,0.32643468,612.68,611.77,3.654]
[1743223270158,0.28422432,612.67,611.77,3.654]
[1743223272864,0.32643468,612.68,611.77,3.654]
[1743223273063,0.61073447,612.68,611.77,3.654]
[1743223275660,0.32643468,612.68,611.77,3.654]
[1743223276965,0.28422781,612.67,611.77,3.654]
[1743223278466,0.28422781,612.67,611.77,4.524]